bitfinex/quotes_BTCUSD_20230120
["timestamp","ask_amount","ask_price","bid_price","bid_amount"]
[1674243357519,0.81598457,21374.0,21373.0,0.88974566]
[1674243357777,0.53403257,21373.0,21372.0,0.07924566]
[1674243358041,0.53403257,21373.0,21372.0,0.18794566]
[1674243358562,0.38403257,21373.0,21372.0,0.18794566]
[1674243359121,0.38403257,21373.0,21370.0,0.82068557]
[1674243359386,0.38403257,21373.0,21372.0,0.2186]
[1674243359650,0.38403257,21373.0,21372.0,0.0186]
[1674243360410,0.39303257,21373.0,21372.0,0.0186]
[1674243360669,0.37694561,21373.0,21372.0,0.0186]
[1674243360925,0.38594561,21373.0,21372.0,0.0186]
[1674243361724,0.38594561,21373.0,21372.0,0.1281]
[1674243362836,0.58594561,21373.0,21372.0,0.1281]
[1674243364180,0.36701542,21372.0,21371.0,0.35472388]
[1674243364435,0.36701542,21372.0,21371.0,1.04052788]
[1674243364694,0.209,21373.0,21371.0,1.45232108]
[1674243364952,0.209,21373.0,21372.0,0.618049]
[1674243365212,0.2,21373.0,21372.0,2.8429065]
[1674243365483,0.2,21373.0,21372.0,2.60084612]
[1674243365763,0.2,21373.0,21372.0,3.50637136]
[1674243366019,0.12454214,21373.0,21372.0,3.50637136]
[1674243366535,0.12454214,21373.0,21372.0,3.73026276]
[1674243366840,0.12454214,21373.0,21372.0,3.92043986]
[1674243367103,0.12454214,21373.0,21372.0,4.19816376]
[1674243367643,0.05029461,21373.0,21372.0,4.48034815]
[1674243367913,0.05029461,21373.0,21372.0,5.41059086]
[1674243368474,0.2,21374.0,21373.0,0.15]
[1674243368733,0.2,21374.0,21373.0,4.50846965]
[1674243369259,0.2,21374.0,21373.0,4.80846014]
[1674243369540,0.209,21374.0,21373.0,4.80846014]
[1674243369815,0.209,21374.0,21373.0,4.33703615]
[1674243370076,0.209,21374.0,21373.0,4.80841072]
[1674243370335,0.209,21374.0,21373.0,4.69654654]
[1674243370601,0.009,21374.0,21373.0,4.51826161]
[1674243371134,0.34629067,21381.0,21374.0,0.15]
[1674243371403,0.34629067,21381.0,21380.0,0.3281]
[1674243371664,0.34629067,21381.0,21380.0,2.345795]
[1674243373008,0.00828421,21382.0,21380.0,2.345795]
[1674243373270,0.00828421,21382.0,21381.0,0.993676]
[1674243373611,0.00828421,21382.0,21381.0,1.929084]
[1674243373613,0.00828421,21382.0,21381.0,2.038584]
[1674243373861,0.00828421,21382.0,21381.0,2.34228426]
[1674243374113,0.00818212,21382.0,21381.0,2.34228426]
[1674243374601,0.00818212,21382.0,21381.0,2.48228426]
[1674243374878,0.00818212,21382.0,21381.0,2.34228426]
[1674243375139,0.00818212,21382.0,21381.0,2.038584]
[1674243375346,0.00818212,21382.0,21381.0,2.34228426]
[1674243375835,0.00818212,21382.0,21381.0,2.48128426]
[1674243376175,0.00818212,21382.0,21381.0,2.71513426]
[1674243376606,0.00818212,21382.0,21381.0,2.46663426]
[1674243376847,0.00818212,21382.0,21381.0,2.56763426]
[1674243377549,0.00818212,21382.0,21381.0,2.46663426]
[1674243377806,0.00818212,21382.0,21381.0,2.67633426]
[1674243378062,0.00818212,21382.0,21381.0,3.98983426]
[1674243378312,0.00818212,21382.0,21381.0,3.99833426]
[1674243378567,0.0079412,21383.0,21382.0,0.00818]
[1674243378840,0.0079412,21383.0,21382.0,1.70538026]
[1674243379111,0.0079412,21383.0,21382.0,2.00538026]
[1674243380670,0.0079412,21383.0,21382.0,2.61896235]
[1674243380930,4.12e-05,21383.0,21382.0,2.61896235]
[1674243381236,0.0079412,21384.0,21383.0,0.13640551]
[1674243381494,0.00323038,21384.0,21383.0,3.18827777]
[1674243381745,0.00323038,21384.0,21383.0,2.56695817]
[1674243382243,0.00323038,21384.0,21383.0,2.53057777]
[1674243383503,0.00323038,21384.0,21383.0,2.63057777]
[1674243383838,0.00323038,21384.0,21383.0,1.67407777]
[1674243384002,0.00323038,21384.0,21383.0,1.15167751]
[1674243384251,0.00323038,21384.0,21383.0,1.30167751]
[1674243384504,0.00323038,21384.0,21383.0,1.04317751]
[1674243384766,0.00323038,21384.0,21383.0,1.03523751]
[1674243385075,0.00323038,21384.0,21383.0,1.27723751]
[1674243385836,0.00323038,21384.0,21383.0,1.18523751]
[1674243386094,0.00323038,21384.0,21383.0,1.16723751]
[1674243386601,0.00323038,21384.0,21383.0,1.46723751]
[1674243390760,0.00323038,21384.0,21383.0,1.93489851]
[1674243391559,0.00323038,21384.0,21383.0,2.23859877]
[1674243391809,0.00323038,21384.0,21383.0,2.39589877]
[1674243392066,0.00018721,21384.0,21383.0,2.39589877]
[1674243393578,0.00018721,21384.0,21383.0,2.30389877]
[1674243393819,0.00018721,21384.0,21383.0,2.39589877]
[1674243395662,0.00018721,21384.0,21383.0,2.30389877]
[1674243395916,0.00018721,21384.0,21383.0,2.39589877]
[1674243396958,5.941e-05,21384.0,21383.0,2.67899877]
[1674243397472,5.941e-05,21384.0,21383.0,2.58699877]
[1674243398511,9.3e-07,21386.0,21384.0,0.15]
[1674243398772,0.00362906,21387.0,21385.0,2.42217726]
[1674243399021,0.00362906,21387.0,21386.0,1.23467126]
[1674243399352,0.00362906,21387.0,21386.0,2.17836126]
[1674243399551,0.00362906,21387.0,21386.0,1.500261]
[1674243400069,0.00362906,21387.0,21386.0,1.592261]
[1674243400356,0.00362906,21387.0,21386.0,1.80396126]
[1674243400669,0.00362906,21387.0,21386.0,1.89596126]
[1674243400938,0.00362906,21387.0,21386.0,2.19596126]
[1674243401479,0.00362906,21387.0,21386.0,2.10396126]
[1674243401739,0.00362906,21387.0,21386.0,1.800261]
[1674243402003,0.00362906,21387.0,21386.0,1.500261]
[1674243402314,0.00362906,21387.0,21386.0,1.592261]
[1674243403395,0.00362906,21387.0,21386.0,1.892261]
[1674243406370,0.00362906,21387.0,21386.0,2.19596126]
[1674243406637,0.00362906,21387.0,21386.0,1.818261]
[1674243409832,0.00362906,21387.0,21386.0,2.12196126]
[1674243410127,0.00362906,21387.0,21386.0,2.19626126]
[1674243410402,0.00152685,21387.0,21386.0,2.19626126]
[1674243411963,0.00096442,21387.0,21386.0,2.19626126]
[1674243414564,0.00096442,21387.0,21386.0,1.892561]
[1674243414829,0.00096442,21387.0,21386.0,1.518261]
[1674243415573,0.00096442,21387.0,21386.0,1.93373717]
[1674243416102,0.00096442,21387.0,21386.0,2.63437489]
[1674243416404,0.00096442,21387.0,21386.0,2.63413318]
[1674243416663,0.00096442,21387.0,21386.0,3.1093941]
[1674243416934,0.00096442,21387.0,21386.0,2.00410111]
[1674243417193,0.00096442,21387.0,21386.0,1.892661]
[1674243418592,0.00096442,21387.0,21386.0,2.78477557]
[1674243418858,0.00096442,21387.0,21386.0,3.11075081]
[1674243419952,0.00096442,21387.0,21386.0,2.25861776]
[1674243420224,0.00096442,21387.0,21386.0,1.7877575]
[1674243420493,0.00096442,21387.0,21386.0,2.62936287]
[1674243421111,0.00096442,21387.0,21386.0,2.93219183]
[1674243421374,0.00096442,21387.0,21386.0,3.15574364]
[1674243421914,0.00041005,21387.0,21386.0,2.76503183]
[1674243422454,0.00041005,21387.0,21386.0,3.10037608]
[1674243422716,0.00041005,21387.0,21386.0,3.36205813]
[1674243423523,5e-08,21387.0,21386.0,3.02673063]
[1674243424018,5e-08,21387.0,21386.0,3.36205589]
[1674243424807,0.00908866,21389.0,21387.0,5.995e-05]
[1674243425075,0.00908866,21389.0,21388.0,2.573364]
[1674243425311,0.00908866,21389.0,21388.0,3.52057844]
[1674243425570,0.00908866,21389.0,21388.0,4.09931254]
[1674243425828,0.00908866,21389.0,21388.0,4.35830242]
[1674243426130,0.00908866,21389.0,21388.0,4.13531254]
[1674243426339,0.00908866,21390.0,21388.0,4.13531254]
[1674243426609,0.00908866,21390.0,21389.0,1.9681667]
[1674243426864,0.00908866,21390.0,21389.0,3.0532267]
[1674243427123,0.00908866,21390.0,21389.0,3.37098255]
[1674243427432,0.00908866,21390.0,21389.0,2.80567044]
[1674243428443,0.00908866,21390.0,21389.0,2.89767044]
[1674243428746,0.00908866,21390.0,21389.0,3.39877473]
[1674243429230,0.00908866,21390.0,21389.0,3.21303569]
[1674243429492,0.00908866,21390.0,21389.0,3.51763569]
[1674243429759,0.00908866,21390.0,21389.0,3.40626171]
[1674243431068,0.00908866,21390.0,21389.0,3.62898597]
[1674243431364,0.00908866,21390.0,21389.0,3.32615701]
[1674243431601,0.00908866,21390.0,21389.0,3.40626171]
[1674243431861,0.00908866,21390.0,21389.0,3.41616874]
[1674243432122,0.00274382,21390.0,21389.0,3.30478456]
[1674243432418,0.00274382,21390.0,21389.0,3.41617046]
[1674243432682,0.00274382,21390.0,21389.0,3.52755292]
[1674243433223,0.00562945,21391.0,21390.0,0.15]
[1674243433484,0.00562945,21391.0,21390.0,2.94081488]
[1674243433736,0.00562945,21391.0,21390.0,3.24082298]
[1674243434041,0.00562945,21391.0,21390.0,3.01797106]
[1674243434313,0.00562945,21391.0,21390.0,2.94259407]
[1674243434569,0.00562945,21391.0,21390.0,3.25749778]
[1674243436420,0.00562945,21391.0,21390.0,3.09032]
[1674243436817,0.00562945,21391.0,21390.0,3.36887477]
[1674243437041,0.00562945,21391.0,21390.0,3.36906197]
[1674243437255,0.00562945,21391.0,21390.0,3.14597106]
[1674243437478,0.00562945,21391.0,21390.0,3.06623429]
[1674243437695,0.00562945,21391.0,21390.0,2.78767952]
[1674243437925,0.00562945,21391.0,21390.0,3.09050848]
[1674243438158,0.00562945,21391.0,21390.0,2.77541629]
[1674243438595,0.00562945,21391.0,21390.0,3.36945967]
[1674243438820,0.00562945,21391.0,21390.0,2.97463071]
[1674243439041,0.00562945,21391.0,21390.0,2.5806824]
[1674243439266,0.00562945,21391.0,21390.0,2.46914424]
[1674243439490,0.00562945,21391.0,21390.0,2.69223071]
[1674243439932,0.00562945,21391.0,21390.0,2.60023071]
[1674243440184,0.13015945,21391.0,21390.0,2.42222078]
[1674243440408,0.13015945,21391.0,21390.0,2.31070226]
[1674243440628,0.00042945,21391.0,21390.0,2.19909317]
[1674243440855,0.00042945,21391.0,21390.0,1.385964]
[1674243441077,0.00042945,21391.0,21390.0,1.64759844]
[1674243441301,0.00042945,21391.0,21390.0,1.535964]
[1674243441529,0.12495945,21391.0,21390.0,1.385964]
[1674243442055,0.58214149,21391.0,21390.0,1.063016]
[1674243442737,0.58214149,21391.0,21390.0,0.971016]
[1674243443174,0.58314149,21391.0,21390.0,0.588508]
[1674243443624,0.58414149,21391.0,21390.0,0.674508]
[1674243444388,0.58414149,21391.0,21390.0,0.974508]
[1674243444616,0.00242945,21391.0,21390.0,0.974508]
[1674243444839,0.00242945,21391.0,21390.0,1.309413]
[1674243445060,0.12695945,21391.0,21390.0,1.142016]
[1674243445503,0.00242945,21391.0,21390.0,1.142016]
[1674243445735,0.00242945,21391.0,21390.0,1.442016]
[1674243446196,0.00242945,21391.0,21390.0,0.974508]
[1674243446386,0.00242945,21391.0,21390.0,1.442016]
[1674243446662,0.00242945,21391.0,21390.0,1.142016]
[1674243446970,0.00242945,21391.0,21390.0,1.442016]
[1674243447646,0.12695945,21391.0,21390.0,1.142016]
[1674243448061,0.12695945,21391.0,21390.0,1.442016]
[1674243448062,0.00242945,21391.0,21390.0,1.442016]
[1674243448726,0.00242945,21391.0,21390.0,1.76214]
[1674243448937,0.00242945,21391.0,21390.0,2.67503762]
[1674243449717,0.00242945,21391.0,21390.0,1.76214]
[1674243450218,0.00242945,21391.0,21390.0,1.91214]
[1674243450770,0.00242945,21391.0,21390.0,2.02377444]
[1674243451832,0.00242945,21391.0,21390.0,1.91214]
[1674243452313,0.00242945,21391.0,21390.0,1.76214]
[1674243452575,0.00242945,21391.0,21390.0,1.91214]
[1674243452847,0.00242945,21391.0,21390.0,1.76214]
[1674243453104,0.00242945,21391.0,21390.0,1.87377444]
[1674243453359,0.00242945,21391.0,21390.0,2.02377444]
[1674243453631,0.00242945,21391.0,21390.0,2.94027403]
[1674243454409,0.00242945,21391.0,21390.0,2.02391007]
[1674243454680,0.00242945,21391.0,21390.0,2.68455014]
[1674243454953,0.00242945,21391.0,21390.0,2.82926197]
[1674243455704,0.00242945,21391.0,21390.0,2.82925484]
[1674243456503,0.00242945,21391.0,21390.0,2.68455014]
[1674243456739,0.00242945,21391.0,21390.0,3.06317978]
[1674243456998,0.00242945,21391.0,21390.0,2.25766007]
[1674243458573,0.00242945,21391.0,21390.0,3.0683964]
[1674243458836,0.00840501,21392.0,21391.0,0.15]
[1674243459092,0.00840501,21392.0,21391.0,2.83351144]
[1674243459353,0.00840501,21392.0,21391.0,2.72177094]
[1674243459608,0.00840501,21392.0,21391.0,2.49825896]
[1674243460077,0.00840501,21392.0,21391.0,1.83506556]
[1674243460343,0.00840501,21392.0,21391.0,1.86406556]
[1674243461158,0.00840501,21392.0,21391.0,2.89706067]
[1674243462192,0.00840501,21392.0,21391.0,2.67331006]
[1674243464337,0.00840501,21392.0,21391.0,2.78505089]
[1674243464595,0.00840501,21392.0,21391.0,2.61739417]
[1674243464864,0.00840501,21392.0,21391.0,2.78504298]
[1674243465135,0.00840501,21392.0,21391.0,2.61739417]
[1674243465417,0.00399342,21392.0,21391.0,3.01537028]
[1674243465682,0.00399342,21392.0,21391.0,2.74707194]
[1674243465942,0.00399342,21392.0,21391.0,3.08687028]
[1674243466214,0.00399342,21392.0,21391.0,2.99487028]
[1674243466699,0.00399342,21392.0,21391.0,3.08687028]
[1674243466957,0.00399342,21392.0,21391.0,3.32999942]
[1674243467221,0.00399342,21392.0,21391.0,3.42197038]
[1674243467488,0.00399342,21392.0,21391.0,2.83907194]
[1674243468012,0.00399342,21392.0,21391.0,3.08600875]
[1674243468569,0.00399342,21392.0,21391.0,3.42104427]
[1674243468842,0.00399342,21392.0,21391.0,2.83907194]
[1674243469370,0.00399342,21392.0,21391.0,2.622037]
[1674243470894,0.00399342,21392.0,21391.0,3.2040027]
[1674243471160,0.00143139,21392.0,21391.0,2.622037]
[1674243471431,0.00143139,21392.0,21391.0,3.20403557]
[1674243472487,0.00143139,21392.0,21391.0,2.86896718]
[1674243472747,0.00143139,21392.0,21391.0,2.86841282]
[1674243473243,0.00143139,21392.0,21391.0,2.322037]
[1674243473508,0.00143139,21392.0,21391.0,2.02264725]
[1674243473766,0.00143139,21392.0,21391.0,2.93616374]
[1674243474028,0.00143139,21392.0,21391.0,3.18253956]
[1674243474310,0.00143139,21392.0,21391.0,4.05159062]
[1674243474311,3.9e-07,21392.0,21391.0,4.05159062]
[1674243474568,0.00989558,21393.0,21391.0,4.51907662]
[1674243474826,0.00989558,21393.0,21392.0,2.36177613]
[1674243475090,0.00989558,21393.0,21392.0,3.60477413]
[1674243475374,0.00932121,21394.0,21392.0,3.93953269]
[1674243475646,0.00988668,21395.0,21394.0,0.12377051]
[1674243475919,0.00988668,21395.0,21394.0,3.13551397]
[1674243476206,0.00988668,21395.0,21394.0,3.35868994]
[1674243476475,0.00988668,21395.0,21394.0,3.07972516]
[1674243476744,0.00988668,21395.0,21394.0,3.17138586]
[1674243477018,0.00988668,21395.0,21394.0,3.11563035]
[1674243477301,0.00988668,21395.0,21394.0,3.28294134]
[1674243477561,0.00988668,21395.0,21394.0,3.3526524]
[1674243477825,0.00988668,21395.0,21394.0,3.5295624]
[1674243478101,0.00988668,21395.0,21394.0,2.345356]
[1674243478671,0.00988668,21395.0,21394.0,2.437356]
[1674243480076,0.00988668,21395.0,21394.0,2.137356]
[1674243481373,0.00988668,21395.0,21394.0,1.36284]
[1674243481648,0.45097294,21395.0,21394.0,0.428]
[1674243481903,0.73134594,21395.0,21394.0,0.428]
[1674243482619,0.73134594,21395.0,21394.0,0.336]
[1674243483179,0.73134594,21395.0,21394.0,0.429]
[1674243483436,0.73134594,21395.0,21394.0,0.336]
[1674243483748,0.73134594,21395.0,21394.0,0.43]
[1674243484486,0.73134594,21395.0,21394.0,0.336]
[1674243484746,0.45197294,21395.0,21394.0,0.371]
[1674243485000,0.37657294,21395.0,21394.0,0.336]
[1674243485273,0.39157294,21395.0,21394.0,0.09715804]
[1674243485544,0.37657294,21395.0,21394.0,0.09515804]
[1674243485834,0.37757294,21395.0,21394.0,0.13015804]
[1674243489520,0.01088668,21395.0,21394.0,0.13015804]
[1674243489777,0.01088668,21395.0,21394.0,1.36499804]
[1674243490032,0.01088668,21395.0,21394.0,1.70985204]
[1674243490348,0.01088668,21395.0,21394.0,1.82141438]
[1674243490786,0.01088668,21395.0,21394.0,1.97141438]
[1674243490787,0.00788493,21395.0,21394.0,1.97141438]
[1674243491030,0.00688493,21395.0,21394.0,1.93641438]
[1674243491274,0.00688493,21395.0,21394.0,2.39127204]
[1674243491574,0.00688493,21395.0,21394.0,2.24127204]
[1674243491797,0.00688493,21395.0,21394.0,2.14227204]
[1674243492052,0.00688493,21395.0,21394.0,2.24127204]
[1674243494818,0.00688493,21395.0,21394.0,1.59641804]
[1674243495415,0.13141493,21395.0,21394.0,1.59641804]
[1674243495671,0.64423522,21395.0,21394.0,0.19415804]
[1674243495940,0.92460822,21395.0,21394.0,0.19415804]
[1674243496212,1.00319278,21395.0,21394.0,0.19415804]
[1674243496463,0.92460822,21395.0,21394.0,0.19415804]
[1674243496722,1.07460822,21395.0,21394.0,0.09515804]
[1674243496979,1.07460822,21395.0,21394.0,0.18615804]
[1674243497239,1.07460822,21395.0,21394.0,0.09515804]
[1674243497774,1.07460822,21395.0,21394.0,0.10215804]
[1674243497775,1.07560822,21395.0,21394.0,0.10215804]
[1674243498260,1.07460822,21395.0,21394.0,0.09515804]
[1674243498537,1.07560822,21395.0,21394.0,0.09715804]
[1674243502528,0.36255793,21395.0,21394.0,0.09715804]
[1674243502790,0.08218493,21395.0,21394.0,0.09715804]
[1674243503049,0.08218493,21395.0,21394.0,0.76742]
[1674243503609,0.00688493,21395.0,21394.0,1.23484]
[1674243503834,0.00688493,21395.0,21394.0,0.93484]
[1674243504378,0.00988493,21395.0,21394.0,0.93684]
[1674243504662,0.00688493,21395.0,21394.0,0.93484]
[1674243504921,0.00688493,21395.0,21394.0,1.02584]
[1674243505179,0.00688493,21395.0,21394.0,1.32584]
[1674243506230,0.00688493,21395.0,21394.0,1.657126]
[1674243506232,0.00688493,21395.0,21394.0,1.807126]
[1674243506789,0.00688493,21395.0,21394.0,2.30305628]
[1674243507061,0.00688493,21395.0,21394.0,3.26689905]
[1674243507609,0.00688493,21395.0,21394.0,3.48998021]
[1674243508126,0.00688493,21395.0,21394.0,3.64611408]
[1674243508931,0.00688493,21395.0,21394.0,3.64610408]
[1674243509214,0.00688493,21395.0,21394.0,2.79585433]
[1674243509474,0.00688493,21395.0,21394.0,2.84700217]
[1674243509750,0.00688493,21395.0,21394.0,3.37929406]
[1674243510222,0.00688493,21395.0,21394.0,3.47129406]
[1674243510223,0.00688493,21395.0,21394.0,3.35964673]
[1674243510480,0.00688493,21395.0,21394.0,3.47130308]
[1674243510743,0.00688493,21395.0,21394.0,2.72139235]
[1674243511005,0.00688493,21395.0,21394.0,2.65517335]
[1674243511284,0.00688493,21395.0,21394.0,2.48770235]
[1674243511534,0.00688493,21395.0,21394.0,2.79694012]
[1674243511793,0.00499828,21395.0,21394.0,3.23205026]
[1674243512343,0.00499828,21395.0,21394.0,3.12039391]
[1674243512648,0.00499828,21395.0,21394.0,3.23203472]
[1674243512917,0.00499828,21395.0,21394.0,2.48768681]
[1674243513744,0.12952828,21395.0,21394.0,1.758626]
[1674243514069,0.00499828,21395.0,21394.0,1.57026681]
[1674243514580,0.00499828,21395.0,21394.0,1.458626]
[1674243515370,0.00499828,21395.0,21394.0,1.274626]
[1674243515625,0.00499828,21395.0,21394.0,1.33534]
[1674243516440,0.00499828,21395.0,21394.0,1.32684]
[1674243516441,0.12952828,21395.0,21394.0,1.32684]
[1674243516703,0.12952828,21395.0,21394.0,1.08919725]
[1674243518563,0.00499828,21395.0,21394.0,1.08919725]
[1674243520907,0.00499828,21395.0,21394.0,1.20083806]
[1674243521165,0.00499828,21395.0,21394.0,1.08919725]
[1674243521422,0.00499828,21395.0,21394.0,1.23919725]
[1674243521680,0.00499828,21395.0,21394.0,1.08919725]
[1674243523279,0.12952828,21395.0,21394.0,1.08919725]
[1674243523813,0.12952828,21395.0,21394.0,0.86337234]
[1674243524082,0.00499828,21395.0,21394.0,0.97501315]
[1674243525955,0.00499828,21395.0,21394.0,1.85507051]
[1674243526189,0.00499828,21395.0,21394.0,2.0689207]
[1674243526446,0.00499828,21395.0,21394.0,2.06878788]
[1674243526709,0.00499828,21395.0,21394.0,2.29208254]
[1674243526994,0.00499828,21395.0,21394.0,2.12461154]
[1674243527538,0.00499828,21395.0,21394.0,2.29221678]
[1674243527796,0.00499828,21395.0,21394.0,2.29221639]
[1674243528069,0.00499828,21395.0,21394.0,2.12461154]
[1674243528343,0.00499828,21395.0,21394.0,2.40344821]
[1674243528606,0.00499828,21395.0,21394.0,2.12461154]
[1674243528866,0.00499828,21395.0,21394.0,2.25435355]
[1674243529133,0.00499828,21395.0,21394.0,2.26285355]
[1674243529388,0.00499828,21395.0,21394.0,2.48627273]
[1674243529695,0.00499828,21395.0,21394.0,1.53329765]
[1674243529947,0.00499828,21395.0,21394.0,2.12193713]
[1674243530207,0.00499828,21395.0,21394.0,2.26308898]
[1674243530474,0.00499828,21395.0,21394.0,2.26258987]
[1674243531044,0.00499828,21395.0,21394.0,2.26306099]
[1674243531563,0.00499828,21395.0,21394.0,2.26258987]
[1674243531819,0.00089612,21395.0,21394.0,2.26258987]
[1674243532103,0.00089612,21395.0,21394.0,1.9837532]
[1674243532412,0.00089612,21395.0,21394.0,2.37487077]
[1674243532704,0.00089612,21395.0,21394.0,1.9837532]
[1674243533247,0.00089612,21395.0,21394.0,2.2174632]
[1674243533505,0.00089612,21395.0,21394.0,2.6798832]
[1674243534840,0.00089612,21395.0,21394.0,2.90329276]
[1674243535395,0.00089612,21395.0,21394.0,3.18255472]
[1674243535656,0.00043525,21395.0,21394.0,2.6798832]
[1674243535921,0.00043525,21395.0,21394.0,3.18270706]
[1674243537063,0.00043525,21395.0,21394.0,2.90336047]
[1674243537310,0.00043525,21395.0,21394.0,3.07096356]
[1674243539417,0.00043525,21395.0,21394.0,2.83939374]
[1674243539673,0.00043525,21395.0,21394.0,2.67179065]
[1674243540201,0.00043525,21395.0,21394.0,2.95113724]
[1674243540988,0.00043525,21395.0,21394.0,2.72765997]
[1674243541247,0.00043525,21395.0,21394.0,2.78307194]
[1674243541574,0.00043525,21395.0,21394.0,3.02806742]
[1674243542036,0.00043525,21395.0,21394.0,2.44831338]
[1674243543613,0.00043525,21395.0,21394.0,2.4871666]
[1674243544418,0.00043525,21395.0,21394.0,2.5611666]
[1674243544927,0.00043525,21395.0,21394.0,2.80573727]
[1674243545187,0.01020832,21396.0,21394.0,3.4104147]
[1674243545514,0.01020832,21396.0,21395.0,1.41192886]
[1674243545713,0.01020832,21396.0,21395.0,2.34672486]
[1674243545957,0.01020832,21396.0,21395.0,2.62592232]
[1674243547056,0.01020832,21396.0,21395.0,2.43872486]
[1674243547320,0.01020832,21396.0,21395.0,2.71806066]
[1674243548090,0.00494915,21396.0,21395.0,2.43872486]
[1674243548639,0.00494915,21396.0,21395.0,2.71805823]
[1674243548901,0.00494915,21396.0,21395.0,2.43872486]
[1674243549725,0.00494915,21396.0,21395.0,2.77384271]
[1674243549984,0.32236012,21396.0,21395.0,2.26806385]
[1674243550245,0.12947915,21396.0,21395.0,1.70594187]
[1674243550506,0.12947915,21396.0,21395.0,1.31470287]
[1674243550787,0.12947915,21396.0,21395.0,1.14705875]
[1674243551057,0.12947915,21396.0,21395.0,1.87267718]
[1674243551584,0.12947915,21396.0,21395.0,1.31470287]
[1674243551850,0.00494915,21396.0,21395.0,1.87463298]
[1674243552368,0.00494915,21396.0,21395.0,2.18298498]
[1674243552638,0.00494915,21396.0,21395.0,1.75748475]
[1674243552906,0.00494915,21396.0,21395.0,1.43855875]
[1674243555048,0.00494915,21396.0,21395.0,2.16628661]
[1674243555331,0.00494915,21396.0,21395.0,2.49084361]
[1674243555587,0.00494915,21396.0,21395.0,2.60255768]
[1674243555844,0.00494915,21396.0,21395.0,2.59255768]
[1674243556132,0.00494915,21396.0,21395.0,2.36908086]
[1674243556409,0.00359875,21396.0,21395.0,2.48077573]
[1674243556677,0.00359875,21396.0,21395.0,1.75316893]
[1674243556932,0.00359875,21396.0,21395.0,1.42861193]
[1674243558227,0.00359875,21396.0,21395.0,2.64102516]
[1674243558481,0.00359875,21396.0,21395.0,2.52920923]
[1674243559022,0.00359875,21396.0,21395.0,2.4909734]
[1674243559287,0.00359875,21396.0,21395.0,1.77071617]
[1674243559545,0.00359875,21396.0,21395.0,1.12856667]
[1674243559546,0.4729264,21396.0,21395.0,1.12856667]
[1674243559814,0.4729264,21396.0,21395.0,0.77194825]
[1674243560382,0.00359875,21396.0,21395.0,0.77194825]
[1674243560654,0.00359875,21396.0,21395.0,0.92194825]
[1674243560911,0.00359875,21396.0,21395.0,1.22194825]
[1674243561168,0.00359875,21396.0,21395.0,1.33371892]
[1674243561514,0.00359875,21396.0,21395.0,1.66388892]
[1674243561767,0.00359875,21396.0,21395.0,2.60472761]
[1674243562522,0.00359875,21396.0,21395.0,2.38120511]
[1674243562804,0.00359875,21396.0,21395.0,2.24056888]
[1674243563056,0.00359875,21396.0,21395.0,2.24048461]
[1674243563281,0.00359875,21396.0,21395.0,2.24043713]
[1674243564556,0.00359875,21396.0,21395.0,2.38106997]
[1674243564805,0.00359875,21396.0,21395.0,2.24043713]
[1674243565057,0.00359875,21396.0,21395.0,2.38109475]
[1674243565303,0.00359875,21396.0,21395.0,2.26932575]
[1674243565550,0.00359875,21396.0,21395.0,2.49293175]
[1674243566313,0.00359875,21396.0,21395.0,2.38101125]
[1674243567144,0.00359875,21396.0,21395.0,2.60449619]
[1674243567428,0.00359875,21396.0,21395.0,2.38101125]
[1674243568206,0.00359875,21396.0,21395.0,2.60449418]
[1674243569012,0.00359875,21396.0,21395.0,2.38101125]
[1674243569296,0.00359875,21396.0,21395.0,2.604519]
[1674243569523,0.00359875,21396.0,21395.0,2.10167226]
[1674243570054,0.00359875,21396.0,21395.0,2.43679011]
[1674243570320,0.00175389,21396.0,21395.0,2.48835102]
[1674243570596,0.00175389,21396.0,21395.0,2.82363451]
[1674243570818,0.00907131,21397.0,21396.0,0.15]
[1674243571109,0.00907131,21397.0,21396.0,3.21062952]
[1674243571378,0.00907131,21397.0,21396.0,3.15080247]
[1674243571646,0.00907131,21397.0,21396.0,2.87537577]
[1674243572436,0.01035556,21398.0,21397.0,0.15]
[1674243572699,0.01035556,21398.0,21397.0,2.71966577]
[1674243572954,0.01035556,21398.0,21397.0,3.80045037]
[1674243573274,0.01035556,21398.0,21397.0,3.2608626]
[1674243573754,0.01035556,21398.0,21397.0,2.77426577]
[1674243574027,0.01035556,21398.0,21397.0,3.0184716]
[1674243574283,0.01035556,21398.0,21397.0,3.35373074]
[1674243574830,0.01035556,21398.0,21397.0,3.0184716]
[1674243575090,5.6e-07,21398.0,21397.0,3.0184716]
[1674243575351,0.01050168,21399.0,21397.0,3.2604364]
[1674243575608,0.9229,21406.0,21398.0,1.41205677]
[1674243575949,1.11722097,21406.0,21401.0,0.27913783]
[1674243576180,1.11722097,21406.0,21402.0,1.092888]
[1674243576181,0.5557,21406.0,21402.0,1.092888]
[1674243576441,0.4057,21406.0,21403.0,0.318531]
[1674243576695,0.4057,21406.0,21404.0,0.934404]
[1674243576952,0.49043422,21407.0,21404.0,0.934404]
[1674243577472,0.50435398,21407.0,21404.0,0.970404]
[1674243577737,0.35435398,21407.0,21404.0,0.970404]
[1674243577997,0.01391976,21407.0,21404.0,0.970404]
[1674243578253,0.01391976,21407.0,21405.0,0.3]
[1674243578589,0.01391976,21407.0,21406.0,0.467158]
[1674243578776,0.01391976,21407.0,21406.0,0.934316]
[1674243579041,0.01391976,21407.0,21406.0,1.05314479]
[1674243579834,0.01391976,21407.0,21406.0,1.08914479]
[1674243580101,0.01391976,21407.0,21406.0,1.39614479]
[1674243580361,0.01391976,21407.0,21406.0,1.277316]
[1674243580628,0.01391976,21407.0,21406.0,1.671416]
[1674243580897,0.01391976,21407.0,21406.0,2.23665743]
[1674243581442,0.01020489,21407.0,21406.0,2.43270167]
[1674243581701,0.01020489,21407.0,21406.0,2.1180023]
[1674243581968,0.01020489,21407.0,21406.0,2.19608254]
[1674243582232,0.01020489,21407.0,21406.0,2.10408254]
[1674243582509,0.01020489,21407.0,21406.0,1.89249624]
[1674243582756,0.01020489,21407.0,21406.0,1.91014923]
[1674243583311,0.01020489,21407.0,21406.0,2.75459751]
[1674243583578,0.01020489,21407.0,21406.0,2.44730553]
[1674243584312,0.01020489,21407.0,21406.0,2.35530553]
[1674243584842,0.01020489,21407.0,21406.0,2.14371923]
[1674243585167,0.01020489,21407.0,21406.0,2.44730553]
[1674243585366,0.01020489,21407.0,21406.0,2.35530553]
[1674243585885,0.01020489,21407.0,21406.0,2.14371923]
[1674243586143,0.01020489,21407.0,21406.0,2.05171923]
[1674243586670,0.01020489,21407.0,21406.0,2.35530553]
[1674243586929,0.01020489,21407.0,21406.0,2.63398507]
[1674243586930,0.00500904,21407.0,21406.0,2.63398507]
[1674243587192,0.44281242,21415.0,21407.0,0.15]
[1674243587455,0.44281242,21415.0,21410.0,0.30793]
[1674243587750,0.4659756,21414.0,21411.0,2.038842]
[1674243588009,0.4659756,21414.0,21412.0,0.477952]
[1674243588267,0.01391976,21416.0,21413.0,1.254466]